bitfinex/quotes_ETHUSD_20250404
["timestamp","ask_amount","ask_price","bid_price","bid_amount"]
[1743771762514,1e-05,1791.9,1791.8,6.75856568]
[1743771762711,1e-05,1791.9,1791.8,7.30855438]
[1743771763105,1e-05,1791.9,1791.8,10.30855438]
[1743771763307,1e-05,1791.9,1791.8,10.25276688]
[1743771763804,1e-05,1791.9,1791.8,10.30854769]
[1743771764234,1e-05,1791.9,1791.8,7.25276688]
[1743771764438,1e-05,1791.9,1791.8,6.75855698]
[1743771764610,1e-05,1791.9,1791.8,6.70276688]
[1743771764813,1e-05,1791.9,1791.8,6.75856045]
[1743771765025,1e-05,1791.9,1791.8,7.25276688]
[1743771765227,1e-05,1791.9,1791.8,10.25276688]
[1743771765444,1e-05,1791.9,1791.8,10.30855083]
[1743771765644,1e-05,1791.9,1791.8,6.75855083]
[1743771765861,1e-05,1791.9,1791.8,6.70276688]
[1743771766025,1e-05,1791.9,1791.8,5.58098]
[1743771766347,1e-05,1791.9,1791.8,5.63677454]
[1743771766548,1e-05,1791.9,1791.8,5.58098]
[1743771767047,1e-05,1791.9,1791.8,5.63677478]
[1743771767282,1e-05,1791.9,1791.8,6.75856126]
[1743771768449,1e-05,1791.9,1791.8,7.30856126]
[1743771768761,1e-05,1791.9,1791.8,6.70276648]
[1743771768965,1e-05,1791.9,1791.8,6.75855583]
[1743771769377,1e-05,1791.9,1791.8,6.70276648]
[1743771769539,1e-05,1791.9,1791.8,6.75855992]
[1743771770575,1e-05,1791.9,1791.8,7.30855992]
[1743771771262,1e-05,1791.9,1791.8,10.30855992]
[1743771772052,1e-05,1791.9,1791.8,10.25276648]
[1743771773072,1e-05,1791.9,1791.8,9.70276648]
[1743771773275,1e-05,1791.9,1791.8,16.63054907]
[1743771773572,1e-05,1791.9,1791.8,17.12476648]
[1743771773954,0.005,1793.0,1792.9,5.57755]
[1743771774162,0.005,1793.0,1792.9,5.63331359]
[1743771774468,0.005,1793.0,1792.8,5.57775]
[1743771774781,0.7884,1792.9,1792.6,5.57846]
[1743771774990,0.7884,1792.9,1792.5,12.4507]
[1743771775143,0.7884,1792.9,1792.4,5.57889]
[1743771775343,6.36614,1792.9,1792.2,5.57973]
[1743771775671,0.7601,1792.8,1792.2,6.824803]
[1743771775878,6.33797,1792.8,1792.2,6.824803]
[1743771776181,0.76,1792.6,1792.1,5.57987]
[1743771776582,0.76,1792.6,1792.5,5.5788]
[1743771776883,0.76,1792.6,1792.5,5.63457916]
[1743771777180,0.005,1793.0,1792.7,5.57804]
[1743771777478,0.005,1793.0,1792.8,0.05577215]
[1743771777866,0.005,1793.0,1792.8,0.05577216]
[1743771778050,0.005,1793.0,1792.8,5.63335216]
[1743771778247,0.005,1793.0,1792.7,0.557804]
[1743771778475,0.7901,1792.9,1792.5,5.57864]
[1743771778686,0.7901,1792.9,1792.7,5.57815]
[1743771778850,0.005,1793.0,1792.7,5.57815]
[1743771778851,0.005,1793.0,1792.9,5.57755]
[1743771779283,0.005,1793.0,1792.9,6.12755]
[1743771779456,0.005,1793.0,1792.9,7.985091]
[1743771779767,0.005,1793.0,1792.9,14.854091]
[1743771779962,0.005,1793.0,1792.9,14.304091]
[1743771780271,0.8073,1793.0,1792.8,5.57786]
[1743771780485,0.005,1793.0,1792.9,5.57755]
[1743771781264,0.005,1793.0,1792.9,5.63331109]
[1743771781459,0.005,1793.0,1792.9,6.18331109]
[1743771781653,0.005,1793.0,1792.9,6.18330572]
[1743771781980,0.005,1793.0,1792.9,7.30366657]
[1743771782221,0.005,1793.0,1792.9,7.359423]
[1743771782705,0.005,1793.0,1792.9,7.30366657]
[1743771783111,1e-05,1793.0,1792.9,7.35941808]
[1743771783410,0.05,1793.9,1793.6,5.57537]
[1743771783709,0.7601,1793.8,1793.2,6.867]
[1743771783900,0.7601,1793.8,1793.4,5.57585]
[1743771784213,0.7601,1793.8,1793.6,5.57536]
[1743771784372,0.7601,1793.8,1793.7,5.57506]
[1743771784573,0.05,1793.9,1793.7,5.57506]
[1743771784574,0.05,1793.9,1793.8,5.57475]
[1743771784777,0.05,1793.9,1793.5,5.57559]
[1743771785078,0.05,1793.9,1793.6,0.05574338]
[1743771785707,0.05,1793.9,1793.6,5.57525]
[1743771785919,0.05,1793.9,1793.8,5.57475]
[1743771786121,0.05,1793.9,1793.8,5.63047767]
[1743771786522,0.05,1793.9,1793.7,6.865]
[1743771786717,0.858,1793.9,1793.7,6.865]
[1743771786918,0.858,1793.9,1793.5,5.57551]
[1743771787224,0.858,1793.9,1793.6,5.63111275]
[1743771787419,0.858,1793.9,1793.8,5.57475]
[1743771787725,0.05,1793.9,1793.8,5.57475]
[1743771787920,0.05,1793.9,1793.5,7.240817]
[1743771787921,0.05,1793.9,1793.6,5.57533]
[1743771788120,0.05,1793.9,1793.7,0.05574223]
[1743771788897,0.05,1793.9,1793.7,6.13803722]
[1743771789120,0.05,1793.9,1793.8,5.57475]
[1743771789659,0.05,1793.9,1793.8,6.12475]
[1743771789927,0.05,1793.9,1793.8,5.57475]
[1743771790290,0.05,1793.9,1793.7,6.13799722]
[1743771790495,0.05,1793.9,1793.7,6.13797722]
[1743771790714,0.05,1793.9,1793.8,0.05573736]
[1743771790918,0.05,1793.9,1793.8,5.63048736]
[1743771791316,0.05,1793.9,1793.8,13.04248736]
[1743771791629,0.05,1793.9,1793.8,12.43675]
[1743771791811,0.7837,1793.8,1793.5,5.57546]
[1743771792217,0.7837,1793.8,1793.6,5.63108321]
[1743771792597,0.7837,1793.8,1793.7,5.57506]
[1743771792798,0.05,1793.9,1793.8,5.57475]
[1743771793025,0.05,1793.9,1793.8,5.63048694]
[1743771793206,0.05,1793.9,1793.8,6.75102863]
[1743771793624,0.05,1793.9,1793.8,1.12054169]
[1743771793830,0.05,1793.9,1793.8,5.63048622]
[1743771794002,0.05,1793.9,1793.8,0.05573622]
[1743771794204,0.05,1793.9,1793.8,5.63048622]
[1743771794405,0.05,1793.9,1793.8,5.57475]
[1743771794608,0.05,1793.9,1793.8,6.74544889]
[1743771794818,0.05,1793.9,1793.8,6.689715]
[1743771795017,0.05,1793.9,1793.8,7.69850028]
[1743771795343,0.4692113,1794.9,1793.8,7.69850028]
[1743771795344,0.8035,1794.7,1794.6,5.57227]
[1743771795642,0.8035,1794.7,1794.5,5.57258]
[1743771795937,0.8035,1794.7,1794.1,5.57379]
[1743771796142,0.13128119,1794.6,1794.1,5.57379]
[1743771796356,0.7801,1794.8,1793.9,12.43434]
[1743771796524,6.35231,1794.7,1794.0,5.57403]
[1743771796728,6.35231,1794.7,1794.1,5.62942785]
[1743771797031,6.36383,1794.5,1793.9,5.5744]
[1743771797260,0.7912,1794.5,1794.1,5.57358]
[1743771797457,0.7912,1794.5,1794.2,0.05572816]
[1743771797629,0.7912,1794.5,1794.3,5.57314]
[1743771798180,0.7912,1794.5,1793.9,6.8007415]
[1743771798480,0.7912,1794.5,1794.1,5.5738]
[1743771798631,0.7912,1794.5,1794.2,0.05572817]
[1743771799545,0.7912,1794.5,1794.2,5.62919817]
[1743771799755,0.7912,1794.5,1794.2,0.05572817]
[1743771800264,0.7912,1794.5,1794.3,5.57304]
[1743771800443,0.7912,1794.5,1794.3,0.89321374]
[1743771800644,0.7912,1794.5,1794.1,5.5737]
[1743771800859,0.7912,1794.5,1794.3,5.57303]
[1743771801275,0.7912,1794.5,1794.3,5.5732]
[1743771801590,0.7912,1794.5,1794.2,5.57338]
[1743771801772,0.7912,1794.5,1794.2,11.20248758]
[1743771801982,0.7912,1794.5,1794.2,6.688057]
[1743771802332,0.7912,1794.5,1794.3,5.62877126]
[1743771802447,0.7912,1794.5,1794.4,5.57289]
[1743771802648,0.7912,1794.5,1794.2,11.14696]
[1743771802845,0.7912,1794.5,1793.8,5.98540745]
[1743771803080,0.8051,1794.9,1793.9,3.05572765]
[1743771803287,0.8051,1794.9,1794.7,5.57181]
[1743771803451,0.8051,1794.9,1794.8,5.57165]
[1743771803886,0.8051,1794.9,1794.7,5.57181]
[1743771804084,0.8051,1794.9,1794.6,5.57223]
[1743771804253,0.8051,1794.9,1794.7,0.05570812]
[1743771804594,0.8051,1794.9,1794.7,5.62754239]
[1743771804800,0.8051,1794.9,1794.3,7.27846329]
[1743771805004,1.442724,1794.9,1794.3,12.43017]
[1743771805320,1.442724,1794.9,1794.5,5.57247]
[1743771805616,0.8051,1794.9,1794.5,5.57239]
[1743771805815,0.8051,1794.9,1794.6,5.62772747]
[1743771805967,0.8051,1794.9,1794.5,5.57248]
[1743771806168,0.8051,1794.9,1794.5,5.57256]
[1743771806415,0.8051,1794.9,1794.6,5.57215]
[1743771806717,0.8051,1794.9,1794.6,5.62793294]
[1743771806916,0.8051,1794.9,1794.7,5.57186]
[1743771807218,0.05,1794.9,1794.8,5.62736049]
[1743771807948,0.05,1794.9,1794.8,5.57165]
[1743771808295,0.05,1794.9,1794.8,5.62735103]
[1743771808498,0.05,1794.9,1794.8,6.6915641]
[1743771808743,0.05,1794.9,1794.8,5.57165]
[1743771809302,0.05,1794.9,1794.6,5.57222]
[1743771809539,0.05,1794.9,1794.4,5.57271]
[1743771810045,0.05,1794.9,1794.5,5.62829719]
[1743771810396,0.05,1794.9,1794.5,0.05571719]
[1743771810613,0.8317,1794.8,1794.4,5.57287]
[1743771810812,0.8317,1794.8,1794.3,11.14613]
[1743771811030,0.8317,1794.8,1794.4,0.05571981]
[1743771811231,0.7731,1794.5,1793.6,6.16]
[1743771811433,4.43314715,1794.5,1793.7,6.19102]
[1743771811616,0.7731,1794.5,1794.3,5.57309]
[1743771812028,0.7731,1794.5,1794.3,5.57301]
[1743771812239,0.7666,1794.8,1794.4,0.05572021]
[1743771812449,0.7666,1794.8,1794.3,5.57318]
[1743771812609,0.7666,1794.8,1794.3,5.57302]
[1743771812808,0.7666,1794.8,1794.4,5.57278]
[1743771813006,0.7666,1794.8,1794.6,5.57215]
[1743771813205,0.7666,1794.8,1794.7,0.05571526]
[1743771813858,0.7666,1794.8,1794.3,5.5731]
[1743771814216,0.7666,1794.8,1794.3,5.573]
[1743771814553,0.7666,1794.8,1794.5,5.57239]
[1743771814736,0.7666,1794.8,1794.4,5.57278]
[1743771814909,0.7666,1794.8,1794.3,6.687838]
[1743771815113,0.7666,1794.8,1794.4,0.05571673]
[1743771815310,0.7666,1794.8,1794.3,5.57304]
[1743771815552,0.7666,1794.8,1794.4,5.62838922]
[1743771815941,0.7666,1794.8,1794.2,5.5735]
[1743771816113,6.33836,1794.8,1794.2,11.14683]
[1743771816315,6.33836,1794.8,1794.2,6.688013]
[1743771816514,6.33836,1794.8,1794.3,5.57318]
[1743771816717,0.7666,1794.8,1794.3,5.57318]
[1743771817024,0.7666,1794.8,1794.3,5.57313]
[1743771817221,6.33825,1794.8,1794.3,5.57313]
[1743771817537,0.8217,1794.7,1794.0,5.57402]
[1743771817718,6.39475,1794.4,1793.8,5.57473]
[1743771817909,5.57321,1794.3,1793.8,6.751306]
[1743771818435,0.8043,1794.3,1793.9,5.63003453]
[1743771818807,0.8043,1794.3,1794.1,5.57364]
[1743771819151,0.8043,1794.3,1793.9,0.05573032]
[1743771819455,0.8043,1794.3,1793.9,5.63013485]
[1743771819658,0.8043,1794.3,1794.0,5.57398]
[1743771819860,0.8043,1794.3,1794.2,5.57351]
[1743771820160,5.57197,1794.7,1794.1,5.57369]
[1743771820311,0.7738,1794.7,1794.2,0.05572525]
[1743771820504,0.7738,1794.3,1793.8,11.14932]
[1743771820838,6.34702,1794.3,1793.8,1.176532]
[1743771821154,5.57363,1794.2,1793.7,0.616]
[1743771821337,11.90139,1794.1,1793.5,5.57556]
[1743771821655,0.7533,1793.9,1793.4,5.57595]
[1743771821810,0.7533,1793.9,1793.5,0.05575041]
[1743771822241,5.57303,1794.4,1793.5,18.99982731]
[1743771822455,0.7816,1794.4,1794.0,5.57391]
[1743771822757,6.35449,1794.4,1793.9,5.5744]
[1743771822959,0.7816,1794.4,1793.9,5.57434]
[1743771823110,0.7816,1794.4,1793.6,7.47534273]
[1743771823312,6.3545,1794.4,1793.8,5.57449]
[1743771823512,6.3545,1794.4,1793.6,1.89998273]
[1743771823513,0.8052,1794.1,1793.6,13.05055273]
[1743771823769,6.37903,1794.1,1793.5,5.57566]
[1743771823983,5.57428,1794.0,1793.4,5.57598]
[1743771824269,6.37978,1793.9,1793.3,5.57624]
[1743771824420,0.8052,1793.9,1793.5,5.5754]
[1743771824623,0.8052,1793.9,1793.3,0.05575041]
[1743771824936,0.7559,1794.4,1794.0,5.57408]
[1743771825139,0.7559,1794.8,1794.1,0.05573647]
[1743771825365,0.7559,1794.8,1794.3,5.5732]
[1743771825669,0.7813,1794.6,1793.8,6.851]
[1743771825873,5.57332,1794.3,1793.4,0.55]
[1743771826169,0.8154,1794.2,1793.7,5.57496]
[1743771826372,11.14743,1794.2,1793.6,5.57535]
[1743771826535,6.32596,1794.1,1793.5,5.57567]
[1743771826721,0.7521,1794.1,1793.6,5.57535]
[1743771826917,0.7521,1794.1,1793.7,0.05574459]
[1743771827147,0.7521,1794.1,1793.9,5.5743]
[1743771827351,3.92251101,1794.7,1793.6,5.57535]
[1743771827523,3.92251101,1794.7,1794.1,5.57354]
[1743771827524,0.7521,1794.5,1794.1,5.57354]
[1743771827738,0.7521,1794.5,1794.0,5.57409]
[1743771827943,6.32473,1794.5,1794.0,5.57409]
[1743771828142,0.7521,1794.5,1794.0,5.5741]
[1743771828352,5.57349,1794.3,1794.1,0.05572941]
[1743771828668,6.39463,1794.0,1793.4,11.15188]
[1743771828828,6.39463,1794.0,1793.5,5.57567]
[1743771829022,6.06,1794.6,1793.6,0.05574743]
[1743771829219,5.57259,1794.5,1793.8,5.57471]
[1743771829479,0.829,1794.4,1793.8,5.57465]
[1743771829624,0.829,1794.4,1793.9,5.57438]
[1743771829821,0.829,1794.4,1794.0,5.57405]
[1743771830061,0.829,1794.4,1794.2,5.57325]
[1743771830266,0.829,1794.4,1794.1,5.57378]
[1743771830467,0.829,1794.4,1793.8,6.132145]
[1743771830468,0.829,1794.4,1794.3,5.5732]
[1743771830678,0.829,1794.4,1794.3,6.69343207]
[1743771831376,0.829,1794.4,1794.0,5.5741]
[1743771831872,0.829,1794.4,1794.1,5.57366]
[1743771832043,0.829,1794.4,1794.1,0.05573075]
[1743771832241,0.829,1794.4,1794.2,5.57337]
[1743771832528,0.829,1794.4,1794.3,5.5732]
[1743771832680,0.8119,1794.6,1794.4,5.57289]
[1743771832984,0.05,1794.9,1794.4,5.62845114]
[1743771833184,0.05,1794.9,1794.8,5.57165]
[1743771833341,0.05,1794.9,1794.8,5.62735813]
[1743771834144,1e-05,1794.9,1794.8,5.62735813]
[1743771834349,1e-05,1794.9,1794.8,6.78971524]
[1743771834550,1e-05,1795.1,1795.0,5.57103]
[1743771834870,0.05,1795.9,1795.3,0.55]
[1743771835070,0.05,1795.9,1795.8,5.56854]
[1743771835581,0.05,1795.9,1795.8,5.6242143]
[1743771835791,0.05,1795.9,1795.8,6.74351773]
[1743771836143,0.05,1795.9,1795.8,13.59251773]
[1743771836343,0.05,1795.9,1795.8,6.68784343]
[1743771836557,0.05,1795.9,1795.8,6.74351642]
[1743771836756,0.05,1795.9,1795.8,5.62421299]
[1743771837355,0.05,1795.9,1795.8,5.56854]
[1743771838245,0.8398,1795.9,1795.6,5.56914]
[1743771838784,0.8398,1795.9,1795.5,5.56927]
[1743771838986,0.8398,1795.9,1795.0,5.57103]
[1743771839160,6.40817,1795.9,1795.3,11.13992]
[1743771839365,0.8398,1795.9,1795.4,0.05569253]
[1743771839565,0.8398,1795.9,1795.7,5.56881]
[1743771839760,0.8398,1795.9,1795.8,5.56854]
[1743771839967,0.05,1795.9,1795.8,5.56854]
[1743771840270,0.05,1795.9,1795.8,5.62421409]
[1743771841006,0.05,1795.9,1795.8,0.05567409]
[1743771841168,0.05,1795.9,1795.6,5.56906]
[1743771841366,0.05,1795.9,1795.7,5.62449989]
[1743771841761,0.05,1795.9,1795.7,0.05567989]
[1743771841961,0.05,1795.9,1795.5,5.56927]
[1743771842212,0.79,1795.8,1795.7,5.56885]
[1743771842374,0.05,1795.9,1795.8,5.56854]
[1743771842712,0.05,1795.9,1795.8,5.62421724]
[1743771842868,0.05,1795.9,1795.8,5.56854]
[1743771843310,1e-05,1795.9,1795.8,5.62420662]
[1743771843518,1e-05,1795.9,1795.8,7.29351228]
[1743771843877,1e-05,1795.9,1795.8,7.23784566]
[1743771844081,1e-05,1795.9,1795.8,7.29350798]
[1743771844378,1e-05,1795.9,1795.8,10.29350798]
[1743771844578,0.811,1796.8,1796.5,5.56624]
[1743771844779,6.37645,1796.8,1796.2,5.56716]
[1743771845033,6.37645,1796.8,1796.1,5.56759]
[1743771845167,6.37645,1796.8,1796.2,0.0556642]
[1743771845168,6.37662,1796.8,1796.2,0.0556642]
[1743771845468,0.8056,1796.6,1796.0,12.41191]
[1743771845668,5.56655,1796.5,1796.0,6.844]
[1743771845976,6.76036,1796.5,1795.9,5.56803]
[1743771846180,0.8238,1796.4,1796.0,5.62347977]
[1743771846377,0.8238,1796.4,1796.0,5.56781]
[1743771846577,0.8238,1796.4,1795.8,1.11930566]
[1743771846780,0.8238,1796.4,1795.9,0.05567141]
[1743771846983,0.8238,1796.4,1795.7,5.56884]
[1743771846984,5.56686,1796.4,1795.7,5.56884]
[1743771847164,0.7967,1796.2,1795.5,0.556927]
[1743771847390,0.7967,1796.2,1795.8,5.56837]
[1743771847605,0.7967,1796.2,1796.0,5.5678]
[1743771847803,0.7967,1796.2,1796.1,0.05567193]
[1743771848119,0.8069,1796.5,1796.2,5.56704]
[1743771848274,0.8069,1796.5,1796.1,5.62327814]
[1743771848275,0.05,1796.9,1796.1,0.05566814]
[1743771848480,0.7923,1796.8,1796.7,5.56575]
[1743771849134,0.05,1796.9,1796.7,6.678919]
[1743771849285,0.05,1796.9,1796.8,5.56544]
[1743771849488,0.8039,1796.8,1796.5,5.56627]
[1743771849820,0.8039,1796.8,1796.3,12.40873]
[1743771849821,0.8039,1796.8,1796.4,5.56658]
[1743771849978,0.8039,1796.8,1796.1,6.842]
[1743771850173,0.8039,1796.8,1796.4,5.5665]
[1743771850374,0.12480924,1796.7,1796.2,0.6842]
[1743771850574,0.12480924,1796.7,1796.3,11.13381]
[1743771850818,6.36955,1796.8,1796.3,5.56683]
[1743771851025,11.93528,1796.8,1796.3,0.05566281]
[1743771851179,0.7696,1796.5,1796.0,5.56778]
[1743771851381,0.7696,1796.5,1795.8,5.56838]
[1743771851596,5.5671,1796.3,1795.8,5.56838]
[1743771851792,5.5671,1796.3,1795.7,5.56883]
[1743771851793,11.13429,1796.3,1795.7,5.56883]
[1743771851991,11.9031,1796.4,1795.8,5.62395792]
[1743771852230,11.90319,1796.4,1795.9,5.56813]
[1743771852521,0.7696,1796.4,1795.9,5.56823]
[1743771852819,6.33629,1796.4,1795.9,5.56823]
[1743771853036,0.7886,1796.2,1795.7,5.56881]
[1743771853327,6.35601,1796.2,1795.7,5.56881]
[1743771853509,0.7886,1796.2,1795.7,7.366564]
[1743771853713,0.7886,1796.2,1795.8,5.56853]
[1743771853884,0.7886,1796.2,1796.0,5.56782]
[1743771854089,0.7886,1796.2,1796.0,11.13564]
[1743771854388,0.7886,1796.2,1796.1,5.62328481]
[1743771854609,6.06,1796.5,1796.3,5.56699]
[1743771854610,0.755,1796.4,1796.3,5.56699]
[1743771854795,7.596,1796.7,1796.4,5.56647]
[1743771855125,0.755,1796.7,1796.3,5.622405]
[1743771855314,0.755,1796.7,1796.2,5.56725]
[1743771855480,5.56609,1796.6,1796.1,11.1349]
[1743771855685,0.755,1796.7,1796.2,5.62294713]
[1743771855886,0.755,1796.7,1796.3,5.56699]
[1743771856193,0.755,1796.7,1796.6,5.56606]
[1743771856731,0.755,1796.7,1796.1,6.68096]
[1743771856732,0.755,1796.7,1796.4,5.56668]
[1743771857109,0.755,1796.7,1796.3,5.56694]
[1743771857293,0.755,1796.7,1796.4,5.56658]
[1743771857684,0.755,1796.7,1796.3,5.56682]
[1743771857981,6.32088,1796.7,1796.2,5.56726]
[1743771858182,6.32088,1796.7,1796.2,5.62296684]
[1743771858183,0.755,1796.7,1796.2,5.62296684]
[1743771858411,0.755,1796.7,1796.2,0.05566684]
[1743771858610,0.755,1796.7,1796.3,5.56685]
[1743771858992,0.05,1796.9,1796.6,5.56604]
[1743771859194,0.05,1796.9,1796.6,5.56582]
[1743771859622,0.05,1796.9,1796.4,5.56647]
[1743771859623,0.751,1796.8,1796.4,5.56647]
[1743771859928,0.751,1796.8,1796.4,11.18870003]
[1743771860127,0.751,1796.8,1796.5,5.56631]
[1743771860430,0.751,1796.8,1796.6,5.6216209]
[1743771860727,0.751,1796.8,1796.6,11.1875809]
[1743771860913,0.751,1796.8,1796.6,11.13192]
[1743771861116,0.751,1796.8,1796.7,5.56575]
[1743771861286,0.05,1796.9,1796.8,5.56544]
[1743771861510,0.05,1796.9,1796.8,6.68412448]
[1743771861708,0.1763148,1796.9,1796.8,6.68412448]
[1743771861910,0.05,1796.9,1796.8,6.68412448]
[1743771862406,1e-05,1796.9,1796.8,10.60663549]
[1743771863945,1e-05,1796.9,1796.8,6.68412448]
[1743771864144,1e-05,1796.9,1796.8,5.62108588]
[1743771865331,1e-05,1796.9,1796.8,9.54359689]
[1743771865531,1e-05,1796.9,1796.8,9.48795101]
[1743771866446,1e-05,1796.9,1796.8,10.03795101]
[1743771866657,1e-05,1796.9,1796.8,11.6458998]
[1743771867214,1e-05,1796.9,1796.8,12.1958998]
[1743771867615,1e-05,1796.9,1796.8,11.6458998]
[1743771868413,1e-05,1797.9,1797.8,5.56235]
[1743771868624,1e-05,1797.9,1797.8,12.39735]
[1743771868824,1e-05,1797.9,1797.8,15.1355891]
[1743771869224,0.7678,1798.7,1798.6,5.55987]
[1743771869461,0.7678,1798.7,1798.5,11.1201]
[1743771869659,0.89635255,1798.7,1798.6,5.61546534]
[1743771870023,0.7678,1798.7,1798.6,5.61546534]
[1743771870238,0.13000055,1798.7,1798.6,5.55987]
[1743771870449,0.13000055,1798.7,1798.3,5.56073]
[1743771870640,0.13000055,1798.7,1798.1,5.56111]
[1743771870641,0.8223,1798.6,1798.1,5.56111]
[1743771870846,1.460504,1798.6,1798.0,5.5617]
[1743771871164,5.56123,1798.2,1797.6,5.56269]
[1743771871465,0.7931,1798.0,1797.6,5.56294]
[1743771871617,0.7931,1798.0,1797.6,5.61846035]
[1743771871956,0.7514,1797.8,1797.3,5.5637]
[1743771872159,0.12647925,1797.7,1797.3,5.5637]
[1743771872315,0.7514,1797.8,1797.4,5.56336]
[1743771872521,6.31386,1797.8,1797.3,5.56386]
[1743771872721,5.56278,1797.7,1797.2,12.39718]
[1743771872916,1.939009,1797.8,1797.1,3.92251101]
[1743771873167,0.87585177,1797.8,1797.4,5.56341]
[1743771873332,6.43838177,1797.8,1797.4,0.0556284]
[1743771873528,6.43838177,1797.8,1797.3,5.56374]
[1743771873760,6.31393,1797.8,1797.3,5.61937013]
[1743771874056,5.56276,1797.7,1797.2,5.61982058]
[1743771874261,6.194176,1797.7,1797.2,5.61982058]
[1743771874472,0.631416,1797.7,1797.2,5.61972058]
[1743771874615,6.194246,1797.7,1797.2,0.05563058]
[1743771874957,6.194166,1797.7,1797.1,11.12869]
[1743771875254,0.631416,1797.7,1797.2,0.05563398]
[1743771875455,5.56285,1797.7,1797.2,5.56417]
[1743771875753,6.31379,1797.8,1797.3,5.56387]
[1743771875913,0.87578536,1797.8,1797.4,0.05562936]
[1743771876117,0.7514,1797.8,1797.2,0.05562419]
[1743771876349,5.56312,1797.6,1797.1,5.56449]
[1743771876578,0.8331,1797.5,1797.1,5.56451]
[1743771876779,6.39644,1797.5,1797.0,5.56466]
[1743771877075,6.39644,1797.5,1797.0,5.62029989]
[1743771877245,0.8331,1797.5,1797.0,0.0556399]
[1743771877436,6.39664,1797.5,1797.0,5.6203299]
[1743771877633,7.036304,1797.5,1797.0,5.6203099]
[1743771877872,5.56371,1797.4,1796.9,5.56503]
[1743771878053,11.12753,1797.4,1796.9,5.56503]
[1743771878242,11.12753,1797.4,1796.9,11.13]
[1743771878243,5.56371,1797.4,1796.9,11.13]
[1743771878438,7.036094,1797.5,1797.0,5.56479]
[1743771878638,5.56405,1797.3,1796.8,0.50383962]
[1743771878961,5.5645,1797.2,1796.8,0.50383962]
[1743771879273,5.56528,1796.9,1796.6,0.50383962]
[1743771879569,0.7955,1796.8,1796.4,5.56655]
[1743771879775,0.7955,1796.8,1796.5,5.56628]
[1743771879977,0.7955,1796.8,1796.3,5.56699]
[1743771880277,0.7946,1797.1,1796.8,5.56527]
[1743771880583,6.3593,1797.1,1796.6,11.13169]
[1743771880786,6.3593,1797.1,1796.6,5.56606]
[1743771880940,6.3593,1797.1,1796.5,6.07015962]
[1743771880941,5.56499,1797.0,1796.5,0.50383962]
[1743771881251,5.56549,1796.8,1796.3,11.1338]
[1743771881449,1.191253,1796.8,1796.3,5.56699]
[1743771881770,0.7818,1796.9,1796.6,5.56587]
[1743771882279,0.7818,1796.9,1796.5,5.56634]
[1743771882280,0.7818,1796.9,1796.5,11.13268]
[1743771882459,5.56545,1796.8,1796.4,5.56668]
[1743771882770,0.7818,1796.9,1796.4,5.56666]
[1743771883137,5.56583,1796.7,1796.2,6.07102962]
[1743771883338,0.7501,1796.6,1796.3,0.05566379]
[1743771883540,0.7501,1796.6,1796.2,5.62296441]
[1743771883739,0.7501,1796.6,1796.1,6.12141962]
[1743771883968,0.7501,1796.4,1796.1,0.05]
[1743771884461,0.7501,1796.4,1796.1,11.18494]
[1743771884662,0.7501,1796.4,1796.2,5.62278248]
[1743771885376,0.8236,1797.0,1796.5,5.56616]
[1743771885679,5.56518,1796.9,1796.5,5.56616]
[1743771886042,5.56607,1796.6,1796.1,13.57362125]
[1743771886278,5.56607,1796.6,1796.1,0.05]
[1743771886279,6.34722,1796.5,1796.1,0.05]
[1743771886473,6.34734,1796.5,1796.1,0.05]
[1743771886784,0.828,1796.2,1796.1,0.05]
[1743771887662,0.828,1796.2,1796.1,5.61761]
[1743771888181,6.8764,1796.5,1796.1,5.61761]
[1743771888353,6.8764,1796.5,1796.1,5.67327328]
[1743771888554,6.8764,1796.5,1796.1,5.67313328]
[1743771888759,6.8764,1796.5,1796.3,5.56669]
[1743771888979,0.8164,1796.5,1796.1,5.61758]
[1743771889180,0.8164,1796.5,1796.1,6.12261147]
[1743771889589,0.8164,1796.5,1796.2,5.56717]
[1743771889889,0.8164,1796.5,1796.3,5.62253878]
[1743771890102,0.8164,1796.5,1796.3,0.05566878]
[1743771890280,0.8164,1796.5,1796.2,5.5673]
[1743771890281,6.38287,1796.5,1796.1,0.05]
[1743771890594,2.011299,1796.5,1796.1,5.61755]
[1743771890779,2.011299,1796.5,1796.1,5.61751]
[1743771891280,2.011299,1796.5,1796.1,0.05]
[1743771891483,0.8164,1796.5,1796.2,5.56727]
[1743771891668,0.8164,1796.5,1796.1,5.61748]
[1743771892196,6.3829,1796.5,1796.1,0.05]
[1743771892362,0.8164,1796.5,1796.1,5.61752]
[1743771892565,0.8164,1796.5,1796.1,5.61746]
[1743771892761,7.021188,1796.5,1796.1,0.05]
[1743771893078,1.454648,1796.5,1796.1,5.61743]
[1743771893391,7.021218,1796.5,1796.1,0.05]
[1743771893596,7.021218,1796.5,1796.1,5.6176]
[1743771893798,7.021028,1796.5,1796.1,5.6176]
[1743771893996,1.454648,1796.5,1796.2,5.56706]
[1743771894291,0.8164,1796.5,1796.2,5.56706]
[1743771894504,6.38288,1796.5,1796.1,0.05]
[1743771894704,11.94943,1796.5,1796.1,0.05]
[1743771894869,5.56717,1796.3,1796.1,0.05]
[1743771895194,1.374317,1796.2,1796.1,0.05]
[1743771895398,0.8176,1796.2,1796.1,0.05]
[1743771895878,6.3849,1796.2,1796.1,0.05]
[1743771896860,0.8176,1796.2,1796.1,0.05]